[Event "FIDE WCCC Open-12 2024"]
[Site "Montesilvano"]
[Date "2024.11.24"]
[Round "9.28"]
[White "Radnaev, Leo"]
[Black "Mai, Duc Kien"]
[Result "0-1"]
[ECO "B76"]
[WhiteElo "1990"]
[BlackElo "1771"]
[Annotator "NA RC"]
[PlyCount "96"]
[EventDate "2024.11.18"]
[EventType "swiss"]
[EventCountry "ITA"]
[SourceTitle "playchess.com"]
[Source "ChessBase"]
[SourceQuality "1"]
[TimeControl "5400+30"]

1. e4 {[%emt 0:00:30]} c5 {[%emt 0:00:14]} 2. Nf3 {[%emt 0:00:00]} d6 {[%emt 0:00:07]} 3. d4 {[%emt 0:00:00]} cxd4 {[%emt 0:00:11]} 4. Nxd4 {[%emt 0:00:00]} Nf6 {[%emt 0:00:12]} 5. Nc3 {[%emt 0:00:00]} g6 {[%emt 0:00:04]} 6. f3 {[%emt 0:00:57]} Bg7 {[%emt 0:00:06]} 7. Be3 {[%emt 0:00:34]} O-O {[%emt 0:00:11]} 8. Qd2 {[%emt 0:00:27]} Nc6 {[%emt 0:00:15]} 9. O-O-O {[%emt 0:00:12]} d5 {[%emt 0:00:09]} 10. Qe1 {[%emt 0:01:23]} e5 {[%emt 0:02:22]} 11. Nxc6 {[%emt 0:00:35]} bxc6 {[%emt 0:00:05]} 12. exd5 {[%emt 0:00:42]} Nxd5 {[%emt 0:00:06]} 13. Bc5 {[%emt 0:16:51]} Be6 {[%emt 0:26:14]} 14. Ne4 {[%emt 0:08:07]} f5 {[%emt 0:05:51]} 15. Bxf8 {[%emt 0:29:39]} Bxf8 {[%emt 0:02:18]} 16. Nd2 {[%emt 0:17:45]} Qf6 {[%emt 0:06:52]} 17. Nc4 {[%emt 0:10:57]} Bg7 {[%emt 0:00:55]} 18. c3 {[%emt 0:00:52]} Rb8 {[%emt 0:01:47]} 19. Bd3 {[%emt 0:01:35]} Nf4 {[%emt 0:06:56]} 20. Bf1 {[%emt 0:01:54]} Bd5 {[%emt 0:06:35]} 21. Qf2 {[%emt 0:03:33]} Qf7 {[%emt 0:01:34]} 22. b3 {[%emt 0:01:38]} Bh6 {[%emt 0:03:41]} 23. Kc2 {[%emt 0:01:22]} Bg7 {[%emt 0:00:31]} 24. g3 {[%emt 0:00:33]} Ne6 {[%emt 0:00:29]} 25. Ne3 {[%emt 0:01:06]} Rd8 {[%emt 0:12:24]} 26. Bc4 {[%emt 0:00:35]} Nc7 {[%emt 0:05:04]} 27. Rd2 {[%emt 0:01:23]} Qf6 {[%emt 0:00:21]} 28. Nd1 {[%emt 0:00:42]} Bh6 {[%emt 0:01:21]} 29. Rd3 {[%emt 0:00:32]} Nb5 {[%emt 0:01:46]} 30. Rxd5 {[%emt 0:00:35]} Na3+ {[%emt 0:00:28]} 31. Kb2 {[%emt 0:00:25]} Nxc4+ {[%emt 0:00:07]} 32. bxc4 {[%emt 0:00:04]} cxd5 {[%emt 0:00:08]} 33. Kc2 {[%emt 0:01:01]} dxc4 {[%emt 0:00:34]} 34. f4 {[%emt 0:00:18]} exf4 {[%emt 0:00:21]} 35. gxf4 {[%emt 0:00:14]} Qa6 {[%emt 0:00:24]} 36. Nb2 {[%emt 0:00:37]} Qxa2 {[%emt 0:00:34]} 37. Qe2 {[%emt 0:00:50]} Qb3+ {[%emt 0:00:07]} 38. Kb1 {[%emt 0:00:14]} Rb8 {[%emt 0:01:47]} 39. Rd1 {[%emt 0:00:34]} Bg7 {[%emt 0:00:26]} 40. Rc1 {[%emt 0:00:42]} Bxc3 {[%emt 0:00:38]} 41. Rxc3 {[%emt 0:00:30]} Qxc3 {[%emt 0:00:05]} 42. Qe6+ {[%emt 0:00:04]} Kh8 {[%emt 0:00:05]} 43. Qe5+ {[%emt 0:00:33]} Qxe5 {[%emt 0:00:07]} 44. fxe5 {[%emt 0:00:05]} c3 {[%emt 0:00:00]} 45. e6 {[%emt 0:00:09]} cxb2 {[%emt 0:00:08]} 46. e7 {[%emt 0:00:08]} f4 {[%emt 0:00:04]} 47. h4 {[%emt 0:00:04]} f3 {[%emt 0:00:03]} 48. h5 {[%emt 0:00:05]} gxh5 {[%emt 0:00:04]} 0-1

[Event "FIDE WCCC Open-12 2024"]
[Site "Montesilvano"]
[Date "2024.11.24"]
[Round "9.29"]
[White "Vinales Gonzalez, Enzo Mathias"]
[Black "Gao, Arthur"]
[Result "0-1"]
[ECO "B41"]
[WhiteElo "1903"]
[BlackElo "1979"]
[Annotator "NA RC"]
[PlyCount "66"]
[EventDate "2024.11.18"]
[EventType "swiss"]
[EventCountry "ITA"]
[SourceTitle "playchess.com"]
[Source "ChessBase"]
[SourceQuality "1"]
[TimeControl "5400+30"]

1. e4 {[%emt 0:00:03]} c5 {[%emt 0:00:03]} 2. Nf3 {[%emt 0:00:03]} e6 {[%emt 0:00:04]} 3. d4 {[%emt 0:00:22]} cxd4 {[%emt 0:00:03]} 4. Nxd4 {[%emt 0:00:04]} a6 {[%emt 0:00:04]} 5. c4 {[%emt 0:00:43]} Nf6 {[%emt 0:00:05]} 6. Nc3 {[%emt 0:00:04]} Qc7 {[%emt 0:00:04]} 7. a3 {[%emt 0:00:04]} b6 {[%emt 0:00:11]} 8. Be3 {[%emt 0:00:21]} Bb7 {[%emt 0:00:20]} 9. f3 {[%emt 0:00:04]} Nc6 {[%emt 0:00:06]} 10. Be2 {[%emt 0:00:15]} Be7 {[%emt 0:02:28]} 11. O-O {[%emt 0:00:22]} O-O {[%emt 0:07:11]} 12. Qd2 {[%emt 0:00:27]} Ne5 {[%emt 0:07:06]} 13. Rac1 {[%emt 0:02:29]} Ng6 {[%emt 0:09:06]} 14. Kh1 {[%emt 0:02:14]} d6 {[%emt 0:03:04]} 15. b4 {[%emt 0:00:41]} Rfd8 {[%emt 0:03:25]} 16. a4 {[%emt 0:04:20]} Rac8 {[%emt 0:06:27]} 17. Nb3 {[%emt 0:01:29]} d5 {[%emt 0:07:50]} 18. Nxd5 {[%emt 0:01:49]} exd5 {[%emt 0:00:34]} 19. cxd5 {[%emt 0:00:10]} Qd6 {[%emt 0:04:35]} 20. a5 {[%emt 0:02:04]} Rxc1 {[%emt 0:16:18]} 21. Rxc1 {[%emt 0:00:29]} Qxb4 {[%emt 0:07:59]} 22. Qxb4 {[%emt 0:00:27]} Bxb4 {[%emt 0:00:04]} 23. axb6 {[%emt 0:00:09]} Rc8 {[%emt 0:03:08]} 24. Rxc8+ {[%emt 0:01:59]} Bxc8 {[%emt 0:00:05]} 25. Bc5 {[%emt 0:01:15]} Bc3 {[%emt 0:00:53]} 26. g3 {[%emt 0:02:26]} Nd7 {[%emt 0:01:59]} 27. f4 {[%emt 0:00:44]} Bb7 {[%emt 0:01:15]} 28. Bg4 {[%emt 0:05:04]} Nf6 {[%emt 0:01:22]} 29. Bf3 {[%emt 0:03:19]} a5 {[%emt 0:02:47]} 30. d6 {[%emt 0:21:08]} a4 {[%emt 0:03:03]} 31. Nc1 {[%emt 0:11:20]} Nd7 {[%emt 0:02:27]} 32. Nd3 {[%emt 0:04:10]} f5 {[%emt 0:05:53]} 33. Ne5 {[%emt 0:11:39]} Ngxe5 {[%emt 0:01:40]} 0-1

[Event "FIDE WCCC Open-12 2024"]
[Site "Montesilvano"]
[Date "2024.11.24"]
[Round "9.30"]
[White "Le, Anh Tu"]
[Black "El Zein, Bassam"]
[Result "1-0"]
[ECO "B29"]
[WhiteElo "1812"]
[BlackElo "1947"]
[Annotator "NA RC"]
[PlyCount "87"]
[EventDate "2024.11.18"]
[EventType "swiss"]
[EventCountry "ITA"]
[SourceTitle "playchess.com"]
[Source "ChessBase"]
[SourceQuality "1"]
[TimeControl "5400+30"]

1. e4 {[%emt 0:00:06]} c5 {[%emt 0:00:03]} 2. Nf3 {[%emt 0:00:06]} Nf6 {[%emt 0:00:04]} 3. e5 {[%emt 0:00:05]} Nd5 {[%emt 0:00:03]} 4. Nc3 {[%emt 0:00:03]} e6 {[%emt 0:00:03]} 5. Ne4 {[%emt 0:00:04]} f5 {[%emt 0:00:07]} 6. Nc3 {[%emt 0:00:06]} Ne7 {[%emt 0:00:05]} 7. d4 {[%emt 0:01:01]} cxd4 {[%emt 0:00:11]} 8. Nxd4 {[%emt 0:00:24]} a6 {[%emt 0:00:10]} 9. Nb3 {[%emt 0:09:32]} Nbc6 {[%emt 0:04:24]} 10. f4 {[%emt 0:00:09]} Ng6 {[%emt 0:00:37]} 11. Be3 {[%emt 0:00:29]} d6 {[%emt 0:00:23]} 12. exd6 {[%emt 0:00:17]} Bxd6 {[%emt 0:00:13]} 13. Qd2 {[%emt 0:00:08]} Qc7 {[%emt 0:00:21]} 14. g3 {[%emt 0:00:21]} O-O {[%emt 0:00:56]} 15. O-O-O {[%emt 0:00:08]} Be7 {[%emt 0:00:38]} 16. Bg2 {[%emt 0:00:13]} Bf6 {[%emt 0:00:28]} 17. Na4 {[%emt 0:01:26]} b5 {[%emt 0:06:01]} 18. Bb6 {[%emt 0:12:21]} Qb8 {[%emt 0:01:14]} 19. Bxc6 {[%emt 0:02:28]} bxa4 {[%emt 0:00:08]} 20. Bxa8 {[%emt 0:00:20]} axb3 {[%emt 0:00:08]} 21. axb3 {[%emt 0:00:21]} Qxb6 {[%emt 0:00:20]} 22. Bg2 {[%emt 0:01:15]} Rd8 {[%emt 0:03:22]} 23. Qe2 {[%emt 0:00:14]} Bd7 {[%emt 0:00:39]} 24. Rhe1 {[%emt 0:00:19]} Nf8 {[%emt 0:00:18]} 25. Qe3 {[%emt 0:01:43]} Qc7 {[%emt 0:03:12]} 26. Bf1 {[%emt 0:00:49]} Rc8 {[%emt 0:01:15]} 27. Bc4 {[%emt 0:02:45]} h6 {[%emt 0:02:48]} 28. Qd3 {[%emt 0:08:50]} Qa5 {[%emt 0:04:45]} 29. Kb1 {[%emt 0:00:52]} Rd8 {[%emt 1:12:04]} 30. Qd6 {[%emt 0:03:01]} Bb5 {[%emt 0:00:00]} 31. Qc5 {[%emt 0:00:28]} Rd4 {[%emt 0:00:00]} 32. c3 {[%emt 0:02:56]} Rd7 {[%emt 0:00:00]} 33. Rxd7 {[%emt 0:00:16]} Nxd7 {[%emt 0:00:00]} 34. Bxe6+ {[%emt 0:00:14]} Kh7 {[%emt 0:00:00]} 35. Bxf5+ {[%emt 0:01:01]} g6 {[%emt 0:00:00]} 36. Re7+ {[%emt 0:00:48]} Bxe7 {[%emt 0:00:00]} 37. Qxe7+ {[%emt 0:00:07]} Kh8 {[%emt 0:00:00]} 38. Bxg6 {[%emt 0:00:27]} Bd3+ {[%emt 0:00:00]} 39. Bxd3 {[%emt 0:00:07]} Nf6 {[%emt 0:00:00]} 40. Qxf6+ {[%emt 0:00:12]} Kg8 {[%emt 0:00:00]} 41. Bc4+ {[%emt 0:00:05]} Qd5 {[%emt 0:00:00]} 42. Bxd5+ {[%emt 0:00:16]} Kh7 {[%emt 0:00:00]} 43. Qf7+ {[%emt 0:00:02]} Kh8 {[%emt 0:00:00]} 44. Qg8# {[%emt 0:00:01]} 1-0

[Event "FIDE WCCC Open-12 2024"]
[Site "Montesilvano"]
[Date "2024.11.24"]
[Round "9.31"]
[White "Ivarlac, Vladislav"]
[Black "Saminskij, Jan"]
[Result "0-1"]
[ECO "A05"]
[WhiteElo "1867"]
[BlackElo "2202"]
[Annotator "RC"]
[PlyCount "118"]
[EventDate "2024.11.18"]
[EventType "swiss"]
[EventCountry "ITA"]
[SourceTitle "playchess.com"]
[Source "ChessBase"]
[SourceQuality "1"]
[TimeControl "5400+30"]

1. Nf3 {[%emt 0:00:01]} Nf6 {[%emt 0:00:45]} 2. g3 {[%emt 0:00:12]} g6 {[%emt 0:00:06]} 3. Bg2 {[%emt 0:00:08]} Bg7 {[%emt 0:00:05]} 4. O-O {[%emt 0:00:18]} O-O {[%emt 0:00:08]} 5. d3 {[%emt 0:00:16]} d6 {[%emt 0:03:02]} 6. Nbd2 {[%emt 0:01:49]} e5 {[%emt 0:00:09]} 7. c4 {[%emt 0:01:45]} c6 {[%emt 0:00:07]} 8. c5 {[%emt 0:05:00]} Ne8 {[%emt 0:03:37]} 9. Nc4 {[%emt 0:07:48]} d5 {[%emt 0:01:30]} 10. Ncd2 {[%emt 0:06:01]} Qe7 {[%emt 0:01:07]} 11. Nb3 {[%emt 0:03:07]} Nd7 {[%emt 0:02:03]} 12. Qc2 {[%emt 0:02:35]} Nc7 {[%emt 0:00:25]} 13. e3 {[%emt 0:03:36]} Ne6 {[%emt 0:01:21]} 14. Bd2 {[%emt 0:04:10]} f5 {[%emt 0:01:38]} 15. Rac1 {[%emt 0:04:39]} e4 {[%emt 0:05:50]} 16. Ne1 {[%emt 0:02:38]} Ne5 {[%emt 0:03:09]} 17. Bc3 {[%emt 0:06:02]} Bd7 {[%emt 0:05:18]} 18. Bxe5 {[%emt 0:06:03]} Bxe5 {[%emt 0:00:08]} 19. f3 {[%emt 0:01:54]} exf3 {[%emt 0:06:24]} 20. Nxf3 {[%emt 0:01:58]} Bc7 {[%emt 0:00:12]} 21. Rce1 {[%emt 0:04:25]} Ng5 {[%emt 0:05:28]} 22. Kh1 {[%emt 0:02:58]} Nxf3 {[%emt 0:00:42]} 23. Bxf3 {[%emt 0:00:19]} Rae8 {[%emt 0:00:47]} 24. e4 {[%emt 0:02:13]} dxe4 {[%emt 0:19:15]} 25. dxe4 {[%emt 0:00:27]} f4 {[%emt 0:00:04]} 26. g4 {[%emt 0:03:25]} Be5 {[%emt 0:00:09]} 27. Nc1 {[%emt 0:03:33]} Be6 {[%emt 0:02:50]} 28. Nd3 {[%emt 0:01:39]} Bd4 {[%emt 0:00:49]} 29. b4 {[%emt 0:01:44]} Qf7 {[%emt 0:00:59]} 30. Rd1 {[%emt 0:06:52]} Rd8 {[%emt 0:00:12]} 31. Be2 {[%emt 0:01:12]} g5 {[%emt 0:00:13]} 32. Nc1 {[%emt 0:01:04]} Be3 {[%emt 0:02:28]} 33. Rxd8 {[%emt 0:01:20]} Rxd8 {[%emt 0:00:07]} 34. Rd1 {[%emt 0:00:26]} Rxd1+ {[%emt 0:04:57]} 35. Qxd1 {[%emt 0:00:37]} f3 {[%emt 0:00:29]} 36. Bf1 {[%emt 0:03:39]} Qf4 {[%emt 0:07:14]} 37. Qd8+ {[%emt 0:02:11]} Kf7 {[%emt 0:00:09]} 38. Nd3 {[%emt 0:00:39]} Qxe4 {[%emt 0:00:39]} 39. Qc7+ {[%emt 0:00:37]} Kg6 {[%emt 0:00:18]} 40. Qe5 {[%emt 0:03:14]} Qd5 {[%emt 0:02:27]} 41. h3 {[%emt 0:02:27]} f2+ {[%emt 0:01:26]} 42. Kh2 {[%emt 0:00:22]} Qxe5+ {[%emt 0:00:09]} 43. Nxe5+ {[%emt 0:00:10]} Kf6 {[%emt 0:00:02]} 44. Nc4 {[%emt 0:00:32]} Bxc4 {[%emt 0:02:32]} 45. Bxc4 {[%emt 0:00:07]} Bd2 {[%emt 0:00:04]} 46. b5 {[%emt 0:02:08]} cxb5 {[%emt 0:00:24]} 47. Bxb5 {[%emt 0:00:08]} Be3 {[%emt 0:00:05]} 48. c6 {[%emt 0:00:28]} bxc6 {[%emt 0:00:04]} 49. Bf1 {[%emt 0:00:19]} Ke5 {[%emt 0:00:05]} 50. Kg2 {[%emt 0:00:20]} Ke4 {[%emt 0:00:59]} 51. Kg3 {[%emt 0:01:08]} c5 {[%emt 0:00:08]} 52. Bg2+ {[%emt 0:00:20]} Kd4 {[%emt 0:00:43]} 53. Kf3 {[%emt 0:00:17]} c4 {[%emt 0:00:07]} 54. Ke2 {[%emt 0:00:10]} c3 {[%emt 0:00:14]} 55. Kd1 {[%emt 0:00:07]} Bd2 {[%emt 0:00:08]} 56. Ke2 {[%emt 0:00:40]} Be1 {[%emt 0:00:15]} 57. Kd1 {[%emt 0:00:47]} Ke3 {[%emt 0:00:12]} 58. Bf1 {[%emt 0:00:33]} Kf3 {[%emt 0:00:03]} 59. Bd3 {[%emt 0:00:37]} Kg2 {[%emt 0:00:09]} 0-1

[Event "FIDE WCCC Open-12 2024"]
[Site "Montesilvano"]
[Date "2024.11.24"]
[Round "9.32"]
[White "Xia, Jinnan"]
[Black "Ivancic, Ivan"]
[Result "1-0"]
[ECO "D35"]
[WhiteElo "1850"]
[BlackElo "2091"]
[Annotator "NA RC"]
[PlyCount "129"]
[EventDate "2024.11.18"]
[EventType "swiss"]
[EventCountry "ITA"]
[SourceTitle "playchess.com"]
[Source "ChessBase"]
[SourceQuality "1"]
[TimeControl "5400+30"]

1. d4 {[%emt 0:00:01]} d5 {[%emt 0:00:12]} 2. c4 {[%emt 0:00:04]} e6 {[%emt 0:00:04]} 3. Nc3 {[%emt 0:00:02]} Nf6 {[%emt 0:00:05]} 4. cxd5 {[%emt 0:00:03]} exd5 {[%emt 0:00:08]} 5. Bg5 {[%emt 0:00:03]} c6 {[%emt 0:00:42]} 6. e3 {[%emt 0:00:03]} h6 {[%emt 0:00:07]} 7. Bh4 {[%emt 0:00:03]} Be7 {[%emt 0:00:07]} 8. Bd3 {[%emt 0:00:05]} O-O {[%emt 0:00:08]} 9. Nge2 {[%emt 0:00:27]} Re8 {[%emt 0:00:11]} 10. O-O {[%emt 0:00:08]} a5 {[%emt 0:00:53]} 11. Qc2 {[%emt 0:00:16]} Na6 {[%emt 0:00:24]} 12. a3 {[%emt 0:00:03]} Nc7 {[%emt 0:00:55]} 13. Bg3 {[%emt 0:00:04]} Bd6 {[%emt 0:00:33]} 14. Rac1 {[%emt 0:07:06]} Bxg3 {[%emt 0:03:30]} 15. Nxg3 {[%emt 0:00:04]} h5 {[%emt 0:01:15]} 16. h3 {[%emt 0:02:39]} Ne6 {[%emt 0:04:13]} 17. b4 {[%emt 0:02:38]} axb4 {[%emt 0:05:30]} 18. axb4 {[%emt 0:00:04]} b5 {[%emt 0:14:04]} 19. Nb1 {[%emt 0:00:32]} Bd7 {[%emt 0:00:39]} 20. Nd2 {[%emt 0:00:10]} Qe7 {[%emt 0:03:35]} 21. Rb1 {[%emt 0:08:10]} Ra4 {[%emt 0:01:16]} 22. Qc3 {[%emt 0:05:15]} Rea8 {[%emt 0:07:55]} 23. Bc2 {[%emt 0:03:10]} R4a6 {[%emt 0:05:11]} 24. Nb3 {[%emt 0:06:02]} g6 {[%emt 0:00:45]} 25. Na5 {[%emt 0:01:24]} h4 {[%emt 0:02:42]} 26. Ne2 {[%emt 0:00:10]} Ng5 {[%emt 0:02:00]} 27. Rfc1 {[%emt 0:05:25]} Nfe4 {[%emt 0:06:53]} 28. Bxe4 {[%emt 0:01:57]} Nxe4 {[%emt 0:01:45]} 29. Qe1 {[%emt 0:01:20]} Nd6 {[%emt 0:15:08]} 30. Ra1 {[%emt 0:05:38]} Nc4 {[%emt 0:01:53]} 31. Rc2 {[%emt 0:01:21]} Qg5 {[%emt 0:06:11]} 32. Nf4 {[%emt 0:03:12]} Qf5 {[%emt 0:00:21]} 33. Rca2 {[%emt 0:02:21]} g5 {[%emt 0:00:20]} 34. Nxc6 {[%emt 0:01:35]} Rxa2 {[%emt 0:02:11]} 35. Ne7+ {[%emt 0:00:07]} Kf8 {[%emt 0:00:04]} 36. Rxa2 {[%emt 0:00:03]} Kxe7 {[%emt 0:00:11]} 37. Rxa8 {[%emt 0:00:09]} gxf4 {[%emt 0:00:09]} 38. exf4+ {[%emt 0:00:04]} Qe4 {[%emt 0:01:21]} 39. Qxe4+ {[%emt 0:04:12]} dxe4 {[%emt 0:00:02]} 40. Rh8 {[%emt 0:00:05]} Na3 {[%emt 0:02:52]} 41. Rxh4 {[%emt 0:00:07]} Nc2 {[%emt 0:00:32]} 42. Rh5 {[%emt 0:01:10]} Nxb4 {[%emt 0:02:18]} 43. Re5+ {[%emt 0:01:06]} Kf6 {[%emt 0:01:31]} 44. d5 {[%emt 0:00:26]} Nc2 {[%emt 0:02:53]} 45. d6 {[%emt 0:00:45]} b4 {[%emt 0:00:25]} 46. Re7 {[%emt 0:01:05]} Bc6 {[%emt 0:02:06]} 47. g4 {[%emt 0:02:34]} Nd4 {[%emt 0:04:35]} 48. g5+ {[%emt 0:00:48]} Kf5 {[%emt 0:00:13]} 49. d7 {[%emt 0:00:09]} Bxd7 {[%emt 0:00:26]} 50. Rxd7 {[%emt 0:00:42]} Nf3+ {[%emt 0:01:08]} 51. Kg2 {[%emt 0:00:45]} Kxf4 {[%emt 0:00:15]} 52. Rxf7+ {[%emt 0:00:54]} Kxg5 {[%emt 0:00:09]} 53. Kg3 {[%emt 0:06:50]} b3 {[%emt 0:00:43]} 54. Rb7 {[%emt 0:02:52]} Nd2 {[%emt 0:00:09]} 55. Rb5+ {[%emt 0:00:15]} Kg6 {[%emt 0:00:33]} 56. Kf4 {[%emt 0:00:20]} Kh6 {[%emt 0:01:58]} 57. Kg4 {[%emt 0:03:34]} Kg6 {[%emt 0:00:23]} 58. Rb6+ {[%emt 0:00:13]} Kg7 {[%emt 0:00:11]} 59. h4 {[%emt 0:01:35]} Kh7 {[%emt 0:00:20]} 60. h5 {[%emt 0:00:03]} Kg7 {[%emt 0:00:10]} 61. h6+ {[%emt 0:00:06]} Kh7 {[%emt 0:00:11]} 62. Kh5 {[%emt 0:00:08]} Nf3 {[%emt 0:00:55]} 63. Rxb3 {[%emt 0:00:12]} Ne5 {[%emt 0:00:18]} 64. Rb7+ {[%emt 0:00:09]} Kh8 {[%emt 0:00:07]} 65. Re7 {[%emt 0:00:08]} 1-0

[Event "FIDE WCCC Open-12 2024"]
[Site "Montesilvano"]
[Date "2024.11.24"]
[Round "9.33"]
[White "Obidov, Biloliddin"]
[Black "Aadik Theophane Lenin"]
[Result "1-0"]
[ECO "B47"]
[WhiteElo "2088"]
[BlackElo "1857"]
[Annotator "NA RC"]
[PlyCount "89"]
[EventDate "2024.11.18"]
[EventType "swiss"]
[EventCountry "ITA"]
[SourceTitle "playchess.com"]
[Source "ChessBase"]
[SourceQuality "1"]
[TimeControl "5400+30"]

1. e4 {[%emt 0:00:01]} c5 {[%emt 0:00:57]} 2. Nf3 {[%emt 0:00:04]} e6 {[%emt 0:00:14]} 3. d4 {[%emt 0:00:04]} cxd4 {[%emt 0:00:43]} 4. Nxd4 {[%emt 0:00:01]} Nc6 {[%emt 0:00:10]} 5. Nc3 {[%emt 0:00:04]} Qc7 {[%emt 0:00:09]} 6. Qd3 {[%emt 0:00:10]} a6 {[%emt 0:07:05]} 7. Nxc6 {[%emt 0:00:22]} bxc6 {[%emt 0:00:29]} 8. Qg3 {[%emt 0:00:21]} d6 {[%emt 0:09:44]} 9. Be2 {[%emt 0:01:27]} Nf6 {[%emt 0:03:25]} 10. O-O {[%emt 0:00:07]} h5 {[%emt 0:06:42]} 11. h4 {[%emt 0:07:21]} e5 {[%emt 0:01:40]} 12. f4 {[%emt 0:02:17]} Bg4 {[%emt 0:08:00]} 13. Bd3 {[%emt 0:11:15]} Be7 {[%emt 0:07:13]} 14. Nd1 {[%emt 0:04:10]} d5 {[%emt 0:04:12]} 15. fxe5 {[%emt 0:05:25]} Bxd1 {[%emt 0:10:14]} 16. Rxd1 {[%emt 0:01:46]} Ng4 {[%emt 0:01:23]} 17. Rf1 {[%emt 0:11:53]} Qxe5 {[%emt 0:06:36]} 18. Qxe5 {[%emt 0:00:38]} Nxe5 {[%emt 0:00:01]} 19. exd5 {[%emt 0:00:08]} Nxd3 {[%emt 0:01:20]} 20. cxd3 {[%emt 0:00:01]} cxd5 {[%emt 0:00:01]} 21. Bg5 {[%emt 0:02:15]} Bxg5 {[%emt 0:03:50]} 22. hxg5 {[%emt 0:00:01]} O-O {[%emt 0:00:13]} 23. Rf5 {[%emt 0:00:29]} Rfd8 {[%emt 0:00:49]} 24. Raf1 {[%emt 0:03:33]} Rd7 {[%emt 0:01:13]} 25. Rc1 {[%emt 0:00:01]} Rb8 {[%emt 0:00:27]} 26. b3 {[%emt 0:00:07]} Rb5 {[%emt 0:04:38]} 27. Rc8+ {[%emt 0:02:59]} Kh7 {[%emt 0:00:03]} 28. Rc6 {[%emt 0:00:08]} a5 {[%emt 0:03:17]} 29. Rxf7 {[%emt 0:05:28]} Rxf7 {[%emt 0:00:02]} 30. g6+ {[%emt 0:00:00]} Kg8 {[%emt 0:00:02]} 31. gxf7+ {[%emt 0:00:01]} Kxf7 {[%emt 0:00:01]} 32. Ra6 {[%emt 0:01:29]} Rc5 {[%emt 0:03:05]} 33. d4 {[%emt 0:00:03]} Rc1+ {[%emt 0:00:25]} 34. Kh2 {[%emt 0:00:03]} Rd1 {[%emt 0:00:06]} 35. Rxa5 {[%emt 0:00:19]} Rxd4 {[%emt 0:00:02]} 36. Rb5 {[%emt 0:08:00]} Rd2 {[%emt 0:03:32]} 37. a4 {[%emt 0:00:04]} Rb2 {[%emt 0:00:11]} 38. a5 {[%emt 0:00:15]} d4 {[%emt 0:00:07]} 39. Kg3 {[%emt 0:02:31]} Ke6 {[%emt 0:05:32]} 40. b4 {[%emt 0:00:29]} d3 {[%emt 0:05:48]} 41. Kf3 {[%emt 0:00:13]} d2 {[%emt 0:00:16]} 42. Ke2 {[%emt 0:00:01]} h4 {[%emt 0:00:06]} 43. a6 {[%emt 0:00:52]} d1=Q+ {[%emt 0:00:10]} 44. Kxd1 {[%emt 0:00:05]} Rxg2 {[%emt 0:00:05]} 45. a7 {[%emt 0:00:18]} 1-0

[Event "FIDE WCCC Open-12 2024"]
[Site "Montesilvano"]
[Date "2024.11.24"]
[Round "9.34"]
[White "Nicot, Valentin"]
[Black "Berdashkevich, Makar"]
[Result "0-1"]
[ECO "D00"]
[WhiteElo "2078"]
[BlackElo "1848"]
[Annotator "NA RC"]
[PlyCount "114"]
[EventDate "2024.11.18"]
[EventType "swiss"]
[EventCountry "ITA"]
[SourceTitle "playchess.com"]
[Source "ChessBase"]
[SourceQuality "1"]
[TimeControl "5400+30"]

1. d4 {[%emt 0:00:25]} Nf6 {[%emt 0:00:16]} 2. Nc3 {[%emt 0:00:29]} d5 {[%emt 0:01:10]} 3. Bf4 {[%emt 0:00:31]} c5 {[%emt 0:04:47]} 4. e4 a6 {[%emt 0:29:51]} 5. e5 {[%emt 0:09:17]} Ng8 {[%emt 0:08:19]} 6. Nf3 {[%emt 0:04:19]} Bg4 {[%emt 0:05:11]} 7. Be2 {[%emt 0:01:26]} e6 {[%emt 0:02:27]} 8. O-O {[%emt 0:02:40]} cxd4 {[%emt 0:02:47]} 9. Nxd4 {[%emt 0:01:37]} Bxe2 {[%emt 0:00:26]} 10. Ncxe2 {[%emt 0:00:38]} Qd7 {[%emt 0:03:10]} 11. Qd3 {[%emt 0:06:30]} Nc6 {[%emt 0:02:34]} 12. Rad1 {[%emt 0:02:05]} Nxd4 {[%emt 0:01:51]} 13. Nxd4 {[%emt 0:00:54]} Rc8 {[%emt 0:01:16]} 14. Be3 {[%emt 0:13:41]} Bc5 {[%emt 0:05:23]} 15. Nb3 {[%emt 0:07:15]} Be7 {[%emt 0:08:28]} 16. c3 {[%emt 0:05:17]} h5 {[%emt 0:03:21]} 17. Qe2 {[%emt 0:03:19]} Qc7 {[%emt 0:03:25]} 18. f4 {[%emt 0:01:41]} g6 {[%emt 0:01:36]} 19. Nd4 {[%emt 0:00:40]} Nh6 {[%emt 0:01:33]} 20. Qf3 {[%emt 0:02:14]} Bc5 {[%emt 0:02:10]} 21. g3 {[%emt 0:02:46]} Ng4 {[%emt 0:03:33]} 22. h3 {[%emt 0:00:46]} Nxe3 {[%emt 0:00:27]} 23. Qxe3 {[%emt 0:00:01]} Qe7 {[%emt 0:00:55]} 24. Kg2 {[%emt 0:01:05]} Rc7 {[%emt 0:02:35]} 25. Qf3 {[%emt 0:01:48]} Bxd4 {[%emt 0:00:04]} 26. Rxd4 {[%emt 0:00:10]} Kd8 {[%emt 0:01:18]} 27. Qd3 {[%emt 0:02:20]} Kc8 {[%emt 0:00:37]} 28. h4 {[%emt 0:01:13]} Kb8 {[%emt 0:00:57]} 29. Rb4 {[%emt 0:01:20]} Rhc8 {[%emt 0:01:12]} 30. Rd4 {[%emt 0:02:16]} Rc4 {[%emt 0:00:23]} 31. Rd1 {[%emt 0:00:23]} Rxd4 {[%emt 0:00:30]} 32. Qxd4 {[%emt 0:00:41]} Rc4 {[%emt 0:00:47]} 33. Qf2 {[%emt 0:00:29]} Qc7 {[%emt 0:00:37]} 34. Rd4 {[%emt 0:00:14]} Qc5 {[%emt 0:01:11]} 35. Rxc4 {[%emt 0:01:36]} Qxc4 {[%emt 0:01:24]} 36. a3 {[%emt 0:00:46]} Kc7 {[%emt 0:00:48]} 37. Qc2 {[%emt 0:03:59]} Qc6 {[%emt 0:00:57]} 38. Kf2 {[%emt 0:01:58]} Qc5+ {[%emt 0:00:15]} 39. Kf1 {[%emt 0:00:53]} d4 {[%emt 0:00:55]} 40. Qd2 {[%emt 0:00:24]} dxc3 {[%emt 0:00:16]} 41. Qxc3 {[%emt 0:00:29]} Qxc3 {[%emt 0:00:14]} 42. bxc3 {[%emt 0:00:01]} Kb6 {[%emt 0:00:17]} 43. Ke2 {[%emt 0:00:29]} Kb5 {[%emt 0:00:05]} 44. Kd3 {[%emt 0:00:22]} Ka4 {[%emt 0:00:09]} 45. c4 {[%emt 0:00:27]} b6 {[%emt 0:00:36]} 46. c5 {[%emt 0:00:33]} bxc5 {[%emt 0:00:03]} 47. Kc4 {[%emt 0:00:01]} Kxa3 {[%emt 0:00:56]} 48. Kxc5 {[%emt 0:00:02]} a5 {[%emt 0:00:20]} 49. Kd6 {[%emt 0:00:00]} Kb4 {[%emt 0:00:53]} 50. Ke7 {[%emt 0:00:01]} a4 {[%emt 0:00:16]} 51. Kxf7 {[%emt 0:00:05]} a3 {[%emt 0:00:06]} 52. Kxe6 {[%emt 0:00:46]} a2 {[%emt 0:00:04]} 53. Kf7 {[%emt 0:00:05]} a1=Q {[%emt 0:00:09]} 54. e6 {[%emt 0:00:01]} Qa2 {[%emt 0:00:27]} 55. Kxg6 {[%emt 0:01:35]} Qxe6+ {[%emt 0:00:06]} 56. Kxh5 {[%emt 0:00:01]} Qf5+ {[%emt 0:00:53]} 57. Kh6 {[%emt 0:00:01]} Kc5 {[%emt 0:00:23]} 0-1